Cogmind - Beta 9.4 *** ADVENTURER MODE // 2020.07.31 @ 12:32:41 Player: Scyralis Result: Destroyed by G-34 Mercenary with Small Laser Performance ------------- Evolutions (1) 500 Regions Visited (3) 600 Robots Destroyed (108) 540 Value Destroyed (2359) 2359 Prototype IDs (3) 60 Alien Tech Used (0) 0 Bonus (344) 344 TOTAL SCORE: 4403 Bonus ------- High Alert Combat Kills 344 Cogmind --------- Core Integrity 0/400 Matter 382/400 Energy 100/100 System Corruption 0% Temperature Cool (54) Movement Core (200) Ox3 Location -9/Materials Parts ------- > --- POWER (1) -------- (None) > --- PROPULSION (2) --- (None) > --- UTILITY (4) ------ Medium Matter Pod Improved Sensor Array Armor Integrity Analyzer Light Armor Plating > --- WEAPON (2) ------- Small Laser Improved Light Cannon > --- INVENTORY (4) ---- (None) Peak State ------------ > --- POWER ------------ Cooled Ion Engine > --- PROPULSION ------- Light Treads Light Treads > --- UTILITY ---------- High-capacity Matter Pod Armor Integrity Analyzer Transmission Jammer Hacking Suite > --- WEAPON ----------- Improved Assault Rifle Improved Assault Rifle > --- INVENTORY -------- Improved Sensor Array Light Cannon Rocket Launcher [Rating: 20] Favorites ----------- Power Improved Ion Engine Engine Improved Ion Engine Propulsion Light Treads Treads Light Treads Utility Improved Terrain Scanner Device Improved Terrain Scanner Storage High-capacity Matter Pod Processor Seismic Analyzer Hackware Hacking Suite Protection Light Armor Plating Weapon Light Cannon Energy Gun Small Laser Ballistic Gun Assault Rifle Ballistic Cannon Light Cannon Launcher Rocket Launcher Build | -11 -10 -10 -9 ------- Run | Scr Mat Min Mat Slots Evolved 2 | . . . 2 Power . | . . . . Propulsion . | . . . . Utility 2 | . . . 2 Weapon . | . . . . Parts Attached 47 | 6 5 . 36 Power 7 | 1 2 . 4 Engine 7 | 1 2 . 4 Core . | . . . . Reactor . | . . . . Propulsion 13 | 2 . . 11 Treads 13 | 2 . . 11 Leg . | . . . . Wheel . | . . . . Hover . | . . . . Flight . | . . . . Utility 12 | 2 . . 10 Device 4 | 1 . . 3 Storage 2 | . . . 2 Processor 2 | 1 . . 1 Hackware 1 | . . . 1 Protection 3 | . . . 3 Artifact . | . . . . Weapon 15 | 1 3 . 11 Energy Gun 2 | . . . 2 Energy Cannon . | . . . . Ballistic Gun 8 | 1 1 . 6 Ballistic Cannon 4 | . 2 . 2 Launcher 1 | . . . 1 Special Weapon . | . . . . Impact Weapon . | . . . . Slashing Weapon . | . . . . Piercing Weapon . | . . . . Special Melee Weapon . | . . . . Unidentified Prototypes 3 | . . . 3 Parts Lost 14 | . . . 14 Power 2 | . . . 2 Propulsion 2 | . . . 2 Utility 5 | . . . 5 Weapon 5 | . . . 5 Highest Loss Streak 8 | . . . 8 Average Slot Usage (%) 93 | . 98 100 85 Engine 12 | . 14 14 10 Treads 23 | . 28 28 17 Device 12 | . 14 14 11 Storage 4 | . . . 9 Processor 10 | . 14 14 6 Hackware 2 | . . . 6 Protection 1 | . . . 3 Energy Gun 1 | . . . 3 Ballistic Gun 12 | . 13 14 11 Ballistic Cannon 9 | . 13 14 4 Naked Turns . | . . . . Heaviest Build 21 | 8 13 13 21 Greatest Support 43 | 40 40 40 43 Greatest Overweight (x) 1 | . . . 1 Average Overweight (x) . | . . . . Largest Inventory Capacity 4 | 4 4 4 4 Average Capacity 4 | 4 4 4 4 Most Carried 4 | 4 4 3 4 Average Carried 2 | . 2 3 1 Final Capacity 4 | 4 4 4 4 Final Carried 3 | . 3 3 . Class Distribution -------------------- 57% | Mutant 24% | Hacker-Mutant 17% | Scavenger-Mutant Dominant Class ---------------- Mutant | -10/Materials Mutant | -10/Mines Hacker-Mutant | -9/Materials Resources | -11 -10 -10 -9 ----------- Run | Scr Mat Min Mat Matter Collected 2204 | 249 611 120 1224 Remotely 622 | . . . 622 Salvage Created 3375 | 26 724 219 2406 Parts 225 | 5 48 12 160 Haulers Intercepted 6 | . 1 . 5 Recyclers Shooed 5 | 1 3 . 1 Parts Field Recycled . | . . . . Retrieved Matter . | . . . . Parts Self-Destructed . | . . . . Prevented . | . . . . Kills | -11 -10 -10 -9 ------- Run | Scr Mat Min Mat Combat Hostiles Destroyed 66 | . 12 8 46 Melee 1 | . . . 1 Guns 38 | . 3 3 32 Cannons 20 | . 9 5 6 AOE 7 | . . . 7 Classes Destroyed 13 | 1 7 . 5 Worker 10 | . 5 . 5 Builder 10 | . 1 1 8 Tunneler 2 | 1 . . 1 Hauler 6 | . 1 . 5 Recycler 5 | . 2 1 2 Mechanic 1 | . . . 1 Watcher 8 | . 3 . 5 Swarmer 15 | . 3 6 6 Grunt 38 | . 9 2 27 Brawler 5 | . . . 5 Duelist 1 | . . . 1 Protector 1 | . . . 1 Sentry 6 | . . . 6 Best Kill Streak 14 | 1 6 3 14 Combat Bots Only 8 | . 3 3 8 Max Kills in Single Turn 3 | 1 2 1 3 Gunslinging . | . . . . Exploded 3 | . . . 3 Melee 1 | . . . 1 Uniques/NPCs Destroyed . | . . . . Combat | -11 -10 -10 -9 -------- Run | Scr Mat Min Mat Damage Taken 2602 | . 384 171 2047 Core 512 | . 80 30 402 Absorbed by Shields . | . . . . Core Remaining (%) 78 | 100 . 56 . Volleys Fired 241 | 4 49 22 166 Largest 2 | 1 2 2 2 Hottest 80 | 20 55 55 80 Shots Fired 432 | 4 98 44 286 Gun 293 | 4 49 22 218 Cannon 127 | . 49 22 56 Launcher 12 | . . . 12 Special . | . . . . Kinetic 386 | 4 98 44 240 Thermal 34 | . . . 34 Explosive 12 | . . . 12 Electromagnetic . | . . . . Robot Hit Streak 29 | 3 16 8 29 Robot Miss Streak 3 | 1 1 3 3 Penetration Max . | . . . . Secondary Targets 5 | . . . 5 Max Gunslinging Chain 1 | . . . 1 Shots Hit Robots 335 | 3 75 30 227 Core Hits 148 | 1 34 12 101 Critical Hits 4 | . . 1 3 Critical Kills 1 | . . . 1 Critical Parts Destroyed 3 | . . 1 2 Melee Attacks . | . . . . Impact . | . . . . Slashing . | . . . . Piercing . | . . . . Sneak Attacks . | . . . . Combat Hostiles . | . . . . Follow-up Attacks . | . . . . Damage Inflicted 5848 | 53 1127 451 4217 Guns 3526 | 53 537 222 2714 Cannons 1513 | . 585 229 699 Explosions 794 | . . . 794 Melee . | . . . . Ramming 15 | . 5 . 10 Kinetic 4715 | 53 1122 451 3089 Thermal 324 | . . . 324 Explosive 794 | . . . 794 Electromagnetic . | . . . . Impact . | . . . . Slashing . | . . . . Piercing . | . . . . Highest Corruption 1 | . 1 1 . Average Corruption 1 | . 1 1 . Corruption Purged . | . . . . Effects 3 | . 3 . . Message Errors 2 | . 2 . . Data Loss (minor) 1 | . 1 . . Overload Shots . | . . . . Overflow Damage 74 | . 20 15 39 Projectiles 46 | . 20 15 11 Explosions 28 | . . . 28 Melee . | . . . . Knockbacks 21 | . 9 4 8 Impact . | . . . . Kinetic 20 | . 9 3 8 Secondary 1 | . . 1 . Self-Inflicted Damage 167 | . . . 167 Shots 5 | . . . 5 Rammed 5 | . 1 . 4 Targets Rammed 5 | . 1 . 4 Kicked . | . . . . Crushed . | . . . . Highest Temperature 396 | . 40 13 396 Average Temperature 60 | . 15 8 71 Received Heat Transfer 1197 | . 156 24 1017 Effects 2 | . . . 2 Short Circuit 1 | . . . 1 Damage (minor) 1 | . . . 1 Siege Activations . | . . . . Robots Corrupted . | . . . . Combat Hostiles . | . . . . Parts Fried . | . . . . Impact Corruptions . | . . . . Robots Melted . | . . . . Combat Hostiles . | . . . . Parts Melted 2 | . . . 2 Heat Transferred 675 | . . . 675 Parts Sabotaged . | . . . . Parts Stolen . | . . . . Parts Stripped . | . . . . Power Chain Reactions . | . . . . Missiles Intercepted . | . . . . Alert | -11 -10 -10 -9 ------- Run | Scr Mat Min Mat Peak Influence 843 | 5 209 125 843 Average Influence 265 | 1 62 83 508 Maximum Alert Level 3 | . 1 . 3 Low Security (%) 55 | 100 92 100 8 Level 1 15 | . 7 . 28 Level 2 19 | . . . 42 Level 3 9 | . . . 21 Level 4 . | . . . . Level 5 . | . . . . High Security . | . . . . Max Security . | . . . . Squads Dispatched 12 | . 2 . 10 Investigation 8 | . 2 . 6 Extermination . | . . . . Reinforcement 2 | . . . 2 Assault 2 | . . . 2 Garrison . | . . . . Intercept . | . . . . Construction Impeded 1 | . . . 1 Haulers Reinforced . | . . . . Stealth | -11 -10 -10 -9 --------- Run | Scr Mat Min Mat Distress Signals 3 | . 1 . 2 Communications Jammed 1 | . . . 1 Distress Signals 1 | . . . 1 Times Spotted 88 | . 15 8 65 Peak Tracking Total 7 | . 3 3 7 Tactical Retreats 4 | . . . 4 Traps | -11 -10 -10 -9 ------- Run | Scr Mat Min Mat Traps Triggered 4 | . 2 . 2 Indirectly . | . . . . Trap Hack Attempts . | . . . . Triggered . | . . . . Disarmed 1 | . 1 . . Reprogrammed . | . . . . Reused . | . . . . Traps Extracted . | . . . . Installed . | . . . . Triggered . | . . . . Machines | -11 -10 -10 -9 ---------- Run | Scr Mat Min Mat Machines Disabled 6 | . 1 1 4 Max in Single Turn 1 | . 1 1 1 Machines Sabotaged . | . . . . Garrisons Compromised . | . . . . Overloaded Fab Kills . | . . . . Fab Network Shutdowns . | . . . . Hacking | -11 -10 -10 -9 --------- Run | Scr Mat Min Mat Machines Accessed 17 | . 9 . 8 Terminals 13 | . 8 . 5 Fabricators . | . . . . Repair Stations 2 | . 1 . 1 Recycling Units . | . . . . Scanalyzers 2 | . . . 2 Garrison Access . | . . . . Total Hacks 52 | . 28 . 24 Successful 37 | . 21 . 16 Failed 15 | . 7 . 8 Catastrophic 3 | . 2 . 1 Database Lockouts . | . . . . Manual 31 | . 13 . 18 Terminals 42 | . 24 . 18 Fabricators . | . . . . Repair Stations 8 | . 4 . 4 Recycling Units . | . . . . Scanalyzers 2 | . . . 2 Garrison Access . | . . . . Terminal Hacks 24 | . 15 . 9 Part Schematic 1 | . 1 . . Robot Analysis 3 | . 2 . 1 Branch Access Points 1 | . 1 . . Emergency Access Points 1 | . . . 1 Terminal Index 1 | . 1 . . Alert Level 2 | . 1 . 1 Unreport Threat 3 | . 2 . 1 Locate Traps 3 | . 3 . . Disarm Traps 1 | . 1 . . Dispatch Records 1 | . 1 . . Recall Investigation 1 | . . . 1 Hauler Manifests 1 | . 1 . . Registered Components 2 | . . . 2 Registered Prototypes 2 | . 1 . 1 Zone Layout 1 | . . . 1 Fabricator Hacks . | . . . . Repair Station Hacks 8 | . 4 . 4 Scan Component 4 | . 2 . 2 Repair 4 | . 2 . 2 Recycling Unit Hacks . | . . . . Scanalyzer . | . . . . Garrison Access Hacks . | . . . . Unauthorized Hacks 10 | . 4 . 6 Terminals 3 | . 2 . 1 Track 2 | . 2 . . Botnet 1 | . . . 1 Fabricators . | . . . . Repair Stations . | . . . . Recycling Units . | . . . . Scanalyzers 2 | . . . 2 Extract 2 | . . . 2 Garrison Access . | . . . . Data Cores Recovered . | . . . . Used . | . . . . Hacking Detections 13 | . 7 . 6 Full Trace Events 7 | . 3 . 4 Feedback Events . | . . . . Feedback Blocked . | . . . . Robot Schematics Acquired . | . . . . Robots Built . | . . . . Matter . | . . . . Time . | . . . . Total Robot Build Rating . | . . . . Part Schematics Acquired 8 | . 1 . 7 Parts Built . | . . . . Matter . | . . . . Time . | . . . . Total Part Build Rating . | . . . . Parts Repaired 4 | . 2 . 2 Time 104 | . 52 . 52 Parts Recycled . | . . . . Recycled Matter . | . . . . Retrieved Matter . | . . . . Retrieved Components . | . . . . Parts Scanalyzed . | . . . . Part Schematics Acquired . | . . . . Parts Damaged . | . . . . Bothacking | -11 -10 -10 -9 ------------ Run | Scr Mat Min Mat Used RIF Installer . | . . . . Robots Hacked . | . . . . Non-combat . | . . . . Combat . | . . . . Robot Hacks Applied . | . . . . Relay Couplers Released . | . . . . Robots Rewired . | . . . . Allies Hacked . | . . . . Hacks Repelled . | . . . . Allies | -11 -10 -10 -9 -------- Run | Scr Mat Min Mat Total Allies . | . . . . Largest Group . | . . . . Highest-Rated Group . | . . . . Highest-Rated Ally . | . . . . Total Orders . | . . . . Ally Attacks . | . . . . Total Damage . | . . . . Kills . | . . . . Allies Corrupted . | . . . . Allies Melted . | . . . . Intel | -11 -10 -10 -9 ------- Run | Scr Mat Min Mat Robot Analysis Total 3 | . 2 . 1 Derelict Logs Recovered 1 | . . 1 . Drone Launches . | . . . . Drone Recoveries . | . . . . Exploration | -11 -10 -10 -9 ------------- Run | Scr Mat Min Mat Turns Passed 3343 | 76 1239 519 1509 Spaces Moved 1556 | 47 640 284 585 Core 22 | 16 . . 6 Treads 1534 | 31 640 284 579 Legs . | . . . . Wheels . | . . . . Hover . | . . . . Flight . | . . . . Fastest Speed 50 | 50 160 160 50 Average Speed 158 | 122 160 160 160 Slowest Speed 180 | 160 160 160 180 Overloaded Moves . | . . . . Propulsion Burnouts . | . . . . Robots Hopped . | . . . . Cave-ins Triggered . | . . . . Exploration Rate (%) 55 | 3 81 77 60 Regions Visited 3 Branch Regions 1 Pre-discovered Areas . | . . . . Known Exits Taken 1 | . 1 . . Unknown Exits Taken 2 | 1 . 1 . Scrap Searched 1 | . . 1 . Spaces Dug . | . . . . Terrain Destroyed 125 | . . . 125 Melee . | . . . . Projectile . | . . . . AOE 125 | . . . 125 Actions | -11 -10 -10 -9 --------- Run | Scr Mat Min Mat Total 2006 | 62 757 305 882 Wait 91 | . 53 . 38 Move 1553 | 46 639 283 585 Hop . | . . . . Pick Up 49 | 6 8 . 35 Fast Attach . | . . . . Attach 35 | 6 3 . 26 Detach . | . . . . Swap 12 | . 2 . 10 Drop 20 | . 2 . 18 Fire 241 | 4 49 22 166 Melee . | . . . . Ram 1 | . . . 1 Kick . | . . . . Crush 4 | . 1 . 3 Escape Stasis . | . . . . Rewire . | . . . . Trap . | . . . . Miscellaneous . | . . . . Route ------- -11/Scrapyard -10/Materials (discovered 4 exits: *Mat x3 / *Min) -10/Mines (discovered 2 exits: *Mat x2) -9/Materials (discovered 1 exit: [*Min]) History --------- Turn | Location | Event 7 | -11/Scrapyard | Discovered new exit (range 14) 77 | -11/Scrapyard | Entered Materials 302 | -10/Materials | Build established: Mutant 375 | -10/Materials | Discovered new exit (range 13) 429 | -10/Materials | Discovered new exit (range 11) 700 | -10/Materials | Identified exit to Mines 824 | -10/Materials | Discovered new exit (range 3) 878 | -10/Materials | Repaired Assault Rifle 905 | -10/Materials | Repaired Lgt. Cannon 1008 | -10/Materials | Discovered new exit (range 12) 1316 | -10/Materials | Entered Mines 1386 | -10/Mines | Discovered new exit (range 12) 1554 | -10/Mines | Learned Materials interactive machine intel 1719 | -10/Mines | Discovered new exit (range 11) 1835 | -10/Mines | Entered Materials 1835 | -9/Materials | Evolved 2 slots: Utility x2 1836 | -9/Materials | Loaded intel: 18 interactive machine locations 2151 | -9/Materials | Build established: Hacker-Mutant 2484 | -9/Materials | Destroyed 7 combat bots 2635 | -9/Materials | First assault squad dispatched 2705 | -9/Materials | Core integrity fell below 50% 2750 | -9/Materials | Lost 8 parts (1p1n3u3w) 2761 | -9/Materials | Destroyed 8 combat bots 2872 | -9/Materials | Core integrity fell below 20% 2937 | -9/Materials | Discovered new exit (range 10) 3053 | -9/Materials | Build established: Scavenger-Mutant 3090 | -9/Materials | Destroyed 7 combat bots 3237 | -9/Materials | Repaired Lgt. Armor Plating? 3289 | -9/Materials | Repaired Lgt. Treads 3344 | -9/Materials | Destroyed by G-34 Mercenary with Small Laser Last Messages --------------- Scanning Lgt. Treads... Ready to Repair: Lgt. Treads Rating: 1 Time: 26 >>Repair Repairing Lgt. Treads... ETC: 26 03289_ Repair station completes Lgt. Treads repairs. 03289_ Acquired Lgt. Treads. 03296_ Slammed into K-01 Serf. 03298_ Acquired 18 matter. 03302_ O-16 Technician: "IFF HANDSHAKE FAILED. SECURING TERMINAL." 03307_ ALERT: Hostiles spotted, dispatching reinforcements to Terminal M001. 03340_ G-34 Mercenary destroyed. 03342_ K-01 Serf collects debris. 03343_ Triggered Blade Trap. 03343_ Massive razor-sharp blades shoot up from within the floor. 03343_ Rnf. Ion Engine severed. 03343_ Lgt. Treads severed. Map ----- +----------------------------------------------------+ | ??????????????????????????????????????? | | ??????????????????????????????????????? | | ??????????????????????????????????????? | | ??????????????????????????????????????? | | ??????????????????????????????????????? | | ????????????????????????????T?????????? | | ??????????????????????????????????????? | | ??????????????????????????????????????? | | ??????????????????????????????????????? | | ????????????????????????? ????????????? | | ????????????????????????? ????????????? | | ????????????????????????? ????????????? | | ????????????????????????? ????????????? | | ????????????????????????? ????????????? | | ????????????????????????? ??"Y"???????? | | ????????????????????????? ??"""???????? | | ????????????????###?#####t#???????????? | | ????????????????# # #####+###???? | | ######??????????? """ + ????? | | """ #???????????? """ # ?????? | | "R" #????????????? """ # ?????? | | " " #?????????????? # """ #??? | | #???????????????#+## """o #??? | | ################# """ ! #??? | | / ? k* ^ #??? | | #+#######################@= !#??? | | # """ #??????????#% " #??? | | + "Y" #??????????+ T #??? | | # #??????????# " !#??? | | # # #??????????# #??? | | # # #??????????# | #??? | | # + """ #??????????# ########+#??? | | + # """ #??????????# #???????????? | | # # """ =#??????????# #???????????? | | # # #??????????? ????????????? | | # ###+##?###??????????? ????????????? | | # #???????????????????? ????????????? | | + #????????????????????g????????????? | | # #????????????????????Y????????????? | | # #???????????????????? ????????????? | | # #????????????????????]????????????? | | + ?????????????????????????????????? | | ? ??????????????????????????????????? | | ?????? ? ????? ???????????????????????? | | ??????????????????????????????????????? | | ???? ?????????????????????????????????? | | ????????????? ????????????????????????? | | # #######??????????????????????? | | # ###??#???????????????????????? | | # ###?#?#??#???????????????????? | +----------------------------------------------------+ Best States ------------- Heat Dissipation 28 Energy Generation 14 Energy Capacity 280 Matter Stores 500 Matter Capacity 500 Sight Range 16 Robot Scan Range 13 Terrain Scan Range 16 Terrain Scan Density 60 Jamming Range 8 Armor Coverage 150 Resistance: KI 20 Resistance: TH 20 Resistance: EX 20 Resistance: EM 20 Resistance: I 20 Resistance: S 20 Resistance: P 20 Evasion (%) 50 Armor Integrity Analysis 33 Recoil Reduction 2 Offensive Hacking 20 Item Schematics ----------------- Lgt. Cannon | -10/Materials | Hacked Med. Armor Plating | -9/Materials | Extracted EMP Blaster | -9/Materials | Extracted Hcp. Storage Unit | -9/Materials | Extracted Hvy. EM Pulse Gun | -9/Materials | Extracted Seismic Analyzer | -9/Materials | Extracted Sml. Storage Unit | -9/Materials | Extracted Maul | -9/Materials | Extracted Robot Schematics ------------------ None Fabricated ------------ Nothing Alien Tech Used ----------------- None Achievements -------------- None Challenges ------------ None Game ------ Seed BiomechanicalWarpSink Manual? 0 Play Time 00:23:14 Cumulative 162.3 hours Start 2020.07.30 @ 23:12:05 End 2020.07.31 @ 12:32:41 Sessions 1 Manual Loads 0 Difficulty Adventurer Special Mode None Game No. 78 Rogue 0 Adventurer 78 Explorer 0 Win Type - Total 1 Types 1/0/0/0/0/0/0 Lore% 29 Gallery% 52 Achievement% 39 Wizard Run 0 Options --------- ASCII 0 Keyboard 0 Movement Numpad Keybinds 0 Fullscreen 0 Font 12/Smallcaps Map View 83x54 Tactical HUD 1 Map Filters NONE Filters NONE Steam X RUN: 05fa32c5-5ffb-4987-b29a-3f198012879e